[Event "Vener-dì-Lampo"]
[Site "Chess.com"]
[Date "2020.04.24"]
[Round "1"]
[White "SpessoInstabile"]
[Black "mr6701"]
[Result "0-1"]
[WhiteElo "1375"]
[BlackElo "1966"]
[TimeControl "300+2"]
[EndTime "11:37:31 PDT"]
[Termination "mr6701 ha vinto per scaccomatto"]

1. d4 {[%clk 0:04:54.3]} 1... d5 {[%clk 0:04:59.4]} 2. c4 {[%clk 0:04:52]} 2...
e6 {[%clk 0:04:57.3]} 3. Nc3 {[%clk 0:04:49.3]} 3... Nf6 {[%clk 0:04:57.8]} 4.
Nf3 {[%clk 0:04:49.5]} 4... Be7 {[%clk 0:04:58.8]} 5. e3 {[%clk 0:04:50.8]} 5...
O-O {[%clk 0:04:59.7]} 6. cxd5 {[%clk 0:04:52]} 6... Nxd5 {[%clk 0:04:59.9]} 7.
Qc2 {[%clk 0:04:53.3]} 7... b6 {[%clk 0:04:59.4]} 8. Be2 {[%clk 0:04:54.2]} 8...
Bb7 {[%clk 0:05:00.2]} 9. O-O {[%clk 0:04:55.1]} 9... Nd7 {[%clk 0:04:58.8]} 10.
Ne1 {[%clk 0:04:56]} 10... Rc8 {[%clk 0:04:55.6]} 11. Nxd5 {[%clk 0:04:57]}
11... Bxd5 {[%clk 0:04:53.1]} 12. Bf3 {[%clk 0:04:56.5]} 12... Nf6 {[%clk
0:04:49.5]} 13. Bxd5 {[%clk 0:04:55.7]} 13... Nxd5 {[%clk 0:04:49]} 14. h3
{[%clk 0:04:56.6]} 14... c5 {[%clk 0:04:49.9]} 15. Qd3 {[%clk 0:04:54.7]} 15...
Nb4 {[%clk 0:04:47.5]} 16. Qe4 {[%clk 0:04:43.9]} 16... cxd4 {[%clk 0:04:34.2]}
17. exd4 {[%clk 0:04:43.6]} 17... Bf6 {[%clk 0:04:30.8]} 18. Nf3 {[%clk
0:04:43.9]} 18... Nc2 {[%clk 0:04:24.2]} 19. Rb1 {[%clk 0:04:42]} 19... Nxd4
{[%clk 0:04:23.5]} 20. Rd1 {[%clk 0:04:42.8]} 20... Nxf3+ {[%clk 0:04:09.7]} 21.
Qxf3 {[%clk 0:04:43.2]} 21... Qe7 {[%clk 0:04:03.2]} 22. Bf4 {[%clk 0:04:41.3]}
22... Rc2 {[%clk 0:03:57.9]} 23. a3 {[%clk 0:04:40.7]} 23... h6 {[%clk
0:03:46.6]} 24. b4 {[%clk 0:04:35.1]} 24... Rd8 {[%clk 0:03:42.5]} 25. Rdc1
{[%clk 0:04:32.7]} 25... Ra2 {[%clk 0:03:20.5]} 26. Rb3 {[%clk 0:04:28.5]} 26...
g5 {[%clk 0:03:17]} 27. Bh2 {[%clk 0:04:23.3]} 27... Rdd2 {[%clk 0:03:14.6]} 28.
Rf1 {[%clk 0:04:23]} 28... Bd4 {[%clk 0:03:09]} 29. Bg3 {[%clk 0:04:22.1]} 29...
f5 {[%clk 0:02:52.4]} 30. Qa8+ {[%clk 0:04:22.4]} 30... Kg7 {[%clk 0:02:47.2]}
31. Bb8 {[%clk 0:04:06.9]} 31... Rxf2 {[%clk 0:02:42.5]} 32. Rxf2 {[%clk
0:04:03.5]} 32... Rxf2 {[%clk 0:02:31.5]} 33. Kh2 {[%clk 0:04:04.4]} 33... b5
{[%clk 0:02:22.9]} 34. Bxa7 {[%clk 0:04:02.7]} 34... Bxa7 {[%clk 0:02:18.1]} 35.
Rf3 {[%clk 0:04:00.3]} 35... Rxf3 {[%clk 0:02:16.1]} 36. Qxf3 {[%clk 0:04:01]}
36... Bb8+ {[%clk 0:02:12.8]} 37. Kg1 {[%clk 0:04:01.1]} 37... Qd6 {[%clk
0:02:07.5]} 38. Qc3+ {[%clk 0:04:01.3]} 38... Qe5 {[%clk 0:01:59.9]} 39. Qc8
{[%clk 0:04:00.2]} 39... Qe1# {[%clk 0:01:41.3]} 0-1

[Event "Vener-dì-Lampo"]
[Site "Chess.com"]
[Date "2020.04.24"]
[Round "1"]
[White "rob_fio"]
[Black "sirmale49"]
[Result "1-0"]
[WhiteElo "1754"]
[BlackElo "1328"]
[TimeControl "300+2"]
[EndTime "11:40:18 PDT"]
[Termination "rob_fio ha vinto per tempo"]

1. d4 {[%clk 0:05:00]} 1... d5 {[%clk 0:04:58.2]} 2. e3 {[%clk 0:05:01.2]} 2...
Nc6 {[%clk 0:04:57.6]} 3. Bd3 {[%clk 0:05:02.4]} 3... Nf6 {[%clk 0:04:55.1]} 4.
f4 {[%clk 0:05:03.8]} 4... e6 {[%clk 0:04:51.2]} 5. Nf3 {[%clk 0:05:05.2]} 5...
Ne4 {[%clk 0:04:43.6]} 6. Nbd2 {[%clk 0:05:05]} 6... f5 {[%clk 0:04:41]} 7. c3
{[%clk 0:05:05.8]} 7... Ne7 {[%clk 0:04:29.6]} 8. O-O {[%clk 0:05:07.1]} 8...
Ng6 {[%clk 0:04:28.2]} 9. Ne5 {[%clk 0:05:07.9]} 9... Nxe5 {[%clk 0:04:25.4]}
10. fxe5 {[%clk 0:05:09.8]} 10... Qg5 {[%clk 0:04:03.9]} 11. Nf3 {[%clk
0:05:07.7]} 11... Qg6 {[%clk 0:03:52.9]} 12. Bd2 {[%clk 0:05:06.2]} 12... Nxd2
{[%clk 0:03:16.1]} 13. Qxd2 {[%clk 0:05:05.1]} 13... Bd7 {[%clk 0:03:16]} 14.
Qf2 {[%clk 0:05:05.7]} 14... O-O-O {[%clk 0:03:14.9]} 15. b4 {[%clk 0:05:04.3]}
15... a6 {[%clk 0:03:02.8]} 16. Qe2 {[%clk 0:05:04.8]} 16... b5 {[%clk
0:02:43.2]} 17. a4 {[%clk 0:05:03.8]} 17... Qe8 {[%clk 0:02:16]} 18. axb5 {[%clk
0:05:00.8]} 18... Bxb5 {[%clk 0:02:11.9]} 19. Bxb5 {[%clk 0:05:00.8]} 19... Qxb5
{[%clk 0:02:11.2]} 20. Qxb5 {[%clk 0:05:01]} 20... axb5 {[%clk 0:02:10.8]} 21.
Ng5 {[%clk 0:05:01.8]} 21... Re8 {[%clk 0:01:57.2]} 22. Nf7 {[%clk 0:04:59.3]}
22... Rg8 {[%clk 0:01:56.8]} 23. Ra8+ {[%clk 0:04:57.7]} 23... Kd7 {[%clk
0:01:56.6]} 24. Ra7 {[%clk 0:04:54.2]} 24... Re7 {[%clk 0:01:44.5]} 25. Ng5
{[%clk 0:04:51.7]} 25... h6 {[%clk 0:01:42.8]} 26. Nh3 {[%clk 0:04:50]} 26... g5
{[%clk 0:01:40.1]} 27. Rfa1 {[%clk 0:04:49.5]} 27... Kc6 {[%clk 0:01:35.2]} 28.
Nf2 {[%clk 0:04:50.3]} 28... Kd7 {[%clk 0:01:02]} 29. Nd3 {[%clk 0:04:50.4]}
29... Re8 {[%clk 0:00:58.5]} 30. Nc5+ {[%clk 0:04:47.9]} 30... Bxc5 {[%clk
0:00:57.9]} 31. bxc5 {[%clk 0:04:49.8]} 31... Rc8 {[%clk 0:00:55]} 32. R1a5
{[%clk 0:04:47.7]} 32... Rb8 {[%clk 0:00:51.7]} 33. Ra3 {[%clk 0:04:37.5]} 33...
b4 {[%clk 0:00:50.6]} 34. cxb4 {[%clk 0:04:38.1]} 34... Rxb4 {[%clk 0:00:50.5]}
35. h3 {[%clk 0:04:35.4]} 35... Rgb8 {[%clk 0:00:49.5]} 36. Ra8 {[%clk 0:04:33]}
36... f4 {[%clk 0:00:39.5]} 37. Rxb8 {[%clk 0:04:28]} 37... Rxb8 {[%clk
0:00:37.5]} 38. exf4 {[%clk 0:04:26.9]} 38... gxf4 {[%clk 0:00:37]} 39. Kf2
{[%clk 0:04:27.1]} 39... Rb2+ {[%clk 0:00:35.8]} 40. Kf3 {[%clk 0:04:27.3]}
40... Rb4 {[%clk 0:00:29.9]} 41. Rd3 {[%clk 0:04:27.6]} 41... Rb8 {[%clk
0:00:23]} 42. Kxf4 {[%clk 0:04:26.8]} 42... Rf8+ {[%clk 0:00:21.2]} 43. Kg3
{[%clk 0:04:24.3]} 43... Rg8+ {[%clk 0:00:20.9]} 44. Kh2 {[%clk 0:04:25.1]}
44... Kc6 {[%clk 0:00:18.8]} 45. g4 {[%clk 0:04:26]} 45... Kb5 {[%clk
0:00:18.7]} 46. Kg3 {[%clk 0:04:26.2]} 46... Kc4 {[%clk 0:00:18.9]} 47. Rd1
{[%clk 0:04:26.8]} 47... Kc3 {[%clk 0:00:13.5]} 48. Kh4 {[%clk 0:04:27.4]} 48...
Kc2 {[%clk 0:00:06.5]} 49. Rf1 {[%clk 0:04:27.8]} 49... Kd3 {[%clk 0:00:03.6]}
50. Rf4 {[%clk 0:04:27.8]} 1-0

[Event "Vener-dì-Lampo"]
[Site "Chess.com"]
[Date "2020.04.24"]
[Round "1"]
[White "SanSecondoPR"]
[Black "BAKR1980"]
[Result "0-1"]
[WhiteElo "1288"]
[BlackElo "1602"]
[TimeControl "300+2"]
[EndTime "11:40:40 PDT"]
[Termination "BAKR1980 ha vinto per tempo"]

1. e4 {[%clk 0:04:58.4]} 1... e5 {[%clk 0:04:52.6]} 2. d4 {[%clk 0:04:57.2]}
2... d5 {[%clk 0:04:37.6]} 3. dxe5 {[%clk 0:04:55.3]} 3... d4 {[%clk 0:04:34.1]}
4. Bc4 {[%clk 0:04:50.8]} 4... Nc6 {[%clk 0:04:25.4]} 5. c3 {[%clk 0:04:49.3]}
5... Nxe5 {[%clk 0:04:13.7]} 6. Bb3 {[%clk 0:04:45.3]} 6... d3 {[%clk
0:04:10.3]} 7. Bf4 {[%clk 0:04:32.5]} 7... Ng6 {[%clk 0:04:01.5]} 8. Qf3 {[%clk
0:04:13.7]} 8... Nxf4 {[%clk 0:03:58.7]} 9. Qxf4 {[%clk 0:04:06.8]} 9... Qd7
{[%clk 0:03:41.7]} 10. Nd2 {[%clk 0:03:56.5]} 10... Bd6 {[%clk 0:03:42.2]} 11.
e5 {[%clk 0:03:44.9]} 11... Qe7 {[%clk 0:03:34.9]} 12. Ngf3 {[%clk 0:03:35.7]}
12... Bd7 {[%clk 0:03:28.1]} 13. O-O {[%clk 0:03:28.9]} 13... Bc5 {[%clk
0:03:27.5]} 14. Rfe1 {[%clk 0:03:01.8]} 14... Be6 {[%clk 0:03:19.9]} 15. Qa4+
{[%clk 0:02:52.7]} 15... Qd7 {[%clk 0:03:14]} 16. Qe4 {[%clk 0:02:41.5]} 16...
O-O-O {[%clk 0:03:06.5]} 17. Ng5 {[%clk 0:02:27.4]} 17... h6 {[%clk 0:03:00.2]}
18. Nxe6 {[%clk 0:02:26.4]} 18... fxe6 {[%clk 0:03:00.7]} 19. Rad1 {[%clk
0:02:17.5]} 19... Ne7 {[%clk 0:02:58.7]} 20. Nc4 {[%clk 0:02:05.2]} 20... Rhf8
{[%clk 0:02:53.6]} 21. Ne3 {[%clk 0:01:59.5]} 21... Kb8 {[%clk 0:02:47.5]} 22.
Qc4 {[%clk 0:01:53.2]} 22... Bxe3 {[%clk 0:02:43.8]} 23. Rxe3 {[%clk 0:01:45.8]}
23... Nd5 {[%clk 0:02:44.4]} 24. Rexd3 {[%clk 0:01:40.5]} 24... Qf7 {[%clk
0:02:45.3]} 25. Rf3 {[%clk 0:01:26.3]} 25... Qh5 {[%clk 0:02:45.2]} 26. Qe4
{[%clk 0:01:10.5]} 26... c6 {[%clk 0:02:31.6]} 27. Rxf8 {[%clk 0:01:03.5]} 27...
Rxf8 {[%clk 0:02:30.9]} 28. c4 {[%clk 0:00:41.1]} 28... Nf4 {[%clk 0:02:21.1]}
29. f3 {[%clk 0:00:16.8]} 29... Qg5 {[%clk 0:02:18]} 30. Qc2 {[%clk 0:00:03.5]}
30... a6 {[%clk 0:02:01.7]} 0-1

[Event "Vener-dì-Lampo"]
[Site "Chess.com"]
[Date "2020.04.24"]
[Round "1"]
[White "pedrak"]
[Black "Mrtre7"]
[Result "1-0"]
[WhiteElo "1994"]
[BlackElo "1440"]
[TimeControl "300+2"]
[EndTime "11:44:16 PDT"]
[Termination "pedrak ha vinto per abbandono"]

1. d4 {[%clk 0:05:00.2]} 1... d5 {[%clk 0:05:00.2]} 2. Nf3 {[%clk 0:05:00.1]}
2... Nf6 {[%clk 0:05:00.1]} 3. Bf4 {[%clk 0:04:59.9]} 3... c6 {[%clk 0:04:57.3]}
4. c3 {[%clk 0:04:59.8]} 4... Bf5 {[%clk 0:04:55.4]} 5. e3 {[%clk 0:04:56.9]}
5... e6 {[%clk 0:04:47.1]} 6. Nbd2 {[%clk 0:04:53]} 6... c5 {[%clk 0:04:43]} 7.
Be2 {[%clk 0:04:39.4]} 7... Nc6 {[%clk 0:04:43.7]} 8. O-O {[%clk 0:04:39.5]}
8... Bd6 {[%clk 0:04:44.2]} 9. Bg3 {[%clk 0:04:39.5]} 9... O-O {[%clk
0:04:42.1]} 10. Ne5 {[%clk 0:04:38.1]} 10... Rc8 {[%clk 0:04:20.6]} 11. f4
{[%clk 0:04:37.1]} 11... cxd4 {[%clk 0:04:19.6]} 12. exd4 {[%clk 0:04:37.3]}
12... Ne4 {[%clk 0:04:00.2]} 13. Bf3 {[%clk 0:04:31.2]} 13... Nxg3 {[%clk
0:03:57.3]} 14. hxg3 {[%clk 0:04:31.6]} 14... Nxe5 {[%clk 0:03:51]} 15. fxe5
{[%clk 0:04:18.2]} 15... Be7 {[%clk 0:03:48.5]} 16. Qe2 {[%clk 0:04:18.5]} 16...
f6 {[%clk 0:03:30]} 17. exf6 {[%clk 0:04:06.5]} 17... Rxf6 {[%clk 0:03:19.6]}
18. Rae1 {[%clk 0:04:02.8]} 18... Qc7 {[%clk 0:03:18.6]} 19. Qe5 {[%clk
0:03:45.9]} 19... Qxe5 {[%clk 0:03:13.6]} 20. dxe5 {[%clk 0:03:40.4]} 20... Rg6
{[%clk 0:03:13.4]} 21. Bxd5 {[%clk 0:03:25]} 21... Rd8 {[%clk 0:03:01.4]} 22. c4
{[%clk 0:03:21.6]} 22... exd5 {[%clk 0:02:43.6]} 23. Rxf5 {[%clk 0:03:20.7]}
23... Bb4 {[%clk 0:02:33.1]} 24. Re2 {[%clk 0:03:10]} 24... Rxg3 {[%clk
0:02:24.1]} 25. b3 {[%clk 0:02:56.3]} 25... dxc4 {[%clk 0:01:58.8]} 26. Nxc4
{[%clk 0:02:54.3]} 26... Rc3 {[%clk 0:01:46]} 27. e6 {[%clk 0:02:46.1]} 27...
Re8 {[%clk 0:01:33.9]} 28. Kf2 {[%clk 0:02:25.6]} 28... b5 {[%clk 0:01:08.7]}
29. Nb2 {[%clk 0:02:18.3]} 29... Bc5+ {[%clk 0:01:09.4]} 30. Ke1 {[%clk
0:02:00.6]} 30... Rg3 {[%clk 0:01:10]} 31. Kd1 {[%clk 0:01:53.3]} 31... Rg6
{[%clk 0:01:10.3]} 32. Rfe5 {[%clk 0:01:52]} 32... Bd6 {[%clk 0:01:02.1]} 33.
R5e4 {[%clk 0:01:51.2]} 33... Rf6 {[%clk 0:01:03.1]} 34. Nd3 {[%clk 0:01:48.9]}
34... g6 {[%clk 0:01:02.1]} 35. Kc2 {[%clk 0:01:45.9]} 35... Kg7 {[%clk
0:01:03.1]} 36. Kb2 {[%clk 0:01:46.2]} 36... Rf5 {[%clk 0:00:52]} 37. a3 {[%clk
0:01:45.9]} 37... Kf6 {[%clk 0:00:50]} 38. g4 {[%clk 0:01:42.2]} 38... Rf3
{[%clk 0:00:47.3]} 39. Nb4 {[%clk 0:01:38.4]} 39... Bxb4 {[%clk 0:00:46.3]} 40.
axb4 {[%clk 0:01:31.4]} 40... h5 {[%clk 0:00:47.2]} 41. gxh5 {[%clk 0:01:31.7]}
41... gxh5 {[%clk 0:00:48]} 42. Re5 {[%clk 0:01:20]} 42... Rf5 {[%clk
0:00:47.4]} 43. R5e4 {[%clk 0:01:17.8]} 43... Kg5 {[%clk 0:00:45.1]} 44. Kc3
{[%clk 0:01:17.9]} 44... h4 {[%clk 0:00:45.8]} 45. Rg2+ {[%clk 0:01:15.3]} 45...
Kh5 {[%clk 0:00:43.8]} 46. Rg7 {[%clk 0:01:14.8]} 46... Rf3+ {[%clk 0:00:43.5]}
47. Kd4 {[%clk 0:01:15.7]} 47... Rf1 {[%clk 0:00:37.9]} 48. Kc5 {[%clk 0:01:16]}
48... Rb1 {[%clk 0:00:33.7]} 49. Rh7+ {[%clk 0:01:12.6]} 49... Kg5 {[%clk
0:00:33.9]} 50. Rhxh4 {[%clk 0:01:13.4]} 50... Rxb3 {[%clk 0:00:33.4]} 51. Kxb5
{[%clk 0:01:09.3]} 51... Rd3 {[%clk 0:00:31.2]} 52. Rhg4+ {[%clk 0:01:08.6]}
52... Kf5 {[%clk 0:00:31.5]} 53. Rgf4+ {[%clk 0:01:08.9]} 53... Kg5 {[%clk
0:00:32.6]} 54. Rf7 {[%clk 0:01:09]} 54... Rd6 {[%clk 0:00:30.8]} 55. Rxa7
{[%clk 0:01:06.9]} 55... Rdxe6 {[%clk 0:00:31.8]} 56. Rxe6 {[%clk 0:01:07.6]}
56... Rxe6 {[%clk 0:00:32.9]} 57. Rf7 {[%clk 0:01:08.2]} 57... Kg6 {[%clk
0:00:33.2]} 58. Rf1 {[%clk 0:01:08.4]} 58... Kg5 {[%clk 0:00:34.3]} 59. Kc5
{[%clk 0:01:08.8]} 59... Re2 {[%clk 0:00:30.4]} 60. b5 {[%clk 0:01:09.1]} 60...
Rc2+ {[%clk 0:00:31.5]} 61. Kb6 {[%clk 0:01:09.7]} 61... Rb2 {[%clk 0:00:32.3]}
62. Kc6 {[%clk 0:01:10]} 62... Rc2+ {[%clk 0:00:33.4]} 63. Kb7 {[%clk
0:01:10.8]} 63... Rb2 {[%clk 0:00:31.4]} 64. b6 {[%clk 0:01:11.4]} 64... Rb5
{[%clk 0:00:30.6]} 65. Kc7 {[%clk 0:01:11.5]} 65... Rc5+ {[%clk 0:00:31.5]} 66.
Kb8 {[%clk 0:01:12]} 66... Rb5 {[%clk 0:00:32]} 67. b7 {[%clk 0:01:12.6]} 67...
Rc5 {[%clk 0:00:31.6]} 68. Ra1 {[%clk 0:01:12.1]} 68... Kf6 {[%clk 0:00:30.4]}
69. Ka7 {[%clk 0:01:12.7]} 69... Rc7 {[%clk 0:00:28.3]} 70. Ka8 {[%clk
0:01:13.2]} 70... Ke7 {[%clk 0:00:18.4]} 71. b8=Q {[%clk 0:01:12.9]} 71... Rd7
{[%clk 0:00:19.6]} 72. Re1+ {[%clk 0:01:12.6]} 72... Kf7 {[%clk 0:00:19.4]} 73.
Qe8+ {[%clk 0:01:12.8]} 73... Kf6 {[%clk 0:00:17.8]} 74. Qxd7 {[%clk 0:01:13.3]}
1-0

[Event "Vener-dì-Lampo"]
[Site "Chess.com"]
[Date "2020.04.24"]
[Round "2"]
[White "mr6701"]
[Black "ottovolante"]
[Result "1-0"]
[WhiteElo "1966"]
[BlackElo "1159"]
[TimeControl "300+2"]
[EndTime "11:49:53 PDT"]
[Termination "mr6701 ha vinto per abbandono"]

1. e4 {[%clk 0:05:01.9]} 1... Nc6 {[%clk 0:04:58.8]} 2. d4 {[%clk 0:05:02.9]}
2... e6 {[%clk 0:04:56.9]} 3. Nf3 {[%clk 0:05:01.4]} 3... d6 {[%clk 0:04:32.1]}
4. Nc3 {[%clk 0:04:57.8]} 4... Bd7 {[%clk 0:04:21.1]} 5. Bc4 {[%clk 0:04:52.2]}
5... h6 {[%clk 0:04:14.6]} 6. O-O {[%clk 0:04:52.4]} 6... Be7 {[%clk 0:04:13.5]}
7. d5 {[%clk 0:04:47.7]} 7... Ne5 {[%clk 0:04:01.8]} 8. dxe6 {[%clk 0:04:47.7]}
8... Nxf3+ {[%clk 0:04:00.6]} 9. Qxf3 {[%clk 0:04:45.5]} 9... Bxe6 {[%clk
0:03:59.6]} 10. Bxe6 {[%clk 0:04:45.5]} 10... fxe6 {[%clk 0:03:59.9]} 11. Qh5+
{[%clk 0:04:46.1]} 11... Kd7 {[%clk 0:03:58.3]} 12. Bf4 {[%clk 0:04:35]} 12...
Qe8 {[%clk 0:03:57.9]} 13. Qh3 {[%clk 0:04:35.8]} 13... c6 {[%clk 0:03:48.7]}
14. Rad1 {[%clk 0:04:34.3]} 14... Qf7 {[%clk 0:03:30.5]} 15. Bxd6 {[%clk
0:04:30.7]} 15... Bxd6 {[%clk 0:03:30.2]} 16. e5 {[%clk 0:04:31.8]} 16... Kc7
{[%clk 0:03:15.4]} 17. Rxd6 {[%clk 0:04:28]} 17... Kb6 {[%clk 0:03:15.1]} 18.
Na4+ {[%clk 0:04:18.7]} 18... Kc7 {[%clk 0:03:13.5]} 19. Nc5 {[%clk 0:04:10]}
19... Ne7 {[%clk 0:02:41.7]} 20. Nxe6+ {[%clk 0:03:58.6]} 20... Kb6 {[%clk
0:02:41.5]} 21. Qb3+ {[%clk 0:03:57.3]} 21... Ka6 {[%clk 0:02:38.7]} 22. Nc7+
{[%clk 0:03:54.4]} 22... Ka5 {[%clk 0:02:36.1]} 23. Qxf7 {[%clk 0:03:52.9]} 1-0

[Event "Vener-dì-Lampo"]
[Site "Chess.com"]
[Date "2020.04.24"]
[Round "2"]
[White "rob_fio"]
[Black "pedrak"]
[Result "0-1"]
[WhiteElo "1751"]
[BlackElo "1999"]
[TimeControl "300+2"]
[EndTime "11:50:38 PDT"]
[Termination "pedrak ha vinto per scaccomatto"]

1. d4 {[%clk 0:05:00]} 1... d5 {[%clk 0:04:59]} 2. e3 {[%clk 0:05:01.4]} 2...
Bf5 {[%clk 0:04:56.9]} 3. Bd3 {[%clk 0:05:02.5]} 3... Bxd3 {[%clk 0:04:57.2]} 4.
Qxd3 {[%clk 0:05:04.4]} 4... c6 {[%clk 0:04:58]} 5. f4 {[%clk 0:05:05.8]} 5...
e6 {[%clk 0:04:58.4]} 6. Nf3 {[%clk 0:05:07.3]} 6... Bd6 {[%clk 0:04:58]} 7. O-O
{[%clk 0:05:08.5]} 7... Nf6 {[%clk 0:04:58.4]} 8. Nbd2 {[%clk 0:05:09.6]} 8...
O-O {[%clk 0:04:58.5]} 9. c3 {[%clk 0:05:10.9]} 9... Nbd7 {[%clk 0:04:58.7]} 10.
Ne5 {[%clk 0:05:11.9]} 10... Qc7 {[%clk 0:04:53.7]} 11. Qe2 {[%clk 0:05:12.8]}
11... Ne4 {[%clk 0:04:52.8]} 12. Nxe4 {[%clk 0:05:13.3]} 12... dxe4 {[%clk
0:04:53.3]} 13. Bd2 {[%clk 0:05:14.5]} 13... f6 {[%clk 0:04:52.8]} 14. Ng4
{[%clk 0:05:14.1]} 14... c5 {[%clk 0:04:44.2]} 15. Qf2 {[%clk 0:05:12.3]} 15...
cxd4 {[%clk 0:04:43.2]} 16. exd4 {[%clk 0:05:11.3]} 16... f5 {[%clk 0:04:41.3]}
17. Ne3 {[%clk 0:05:11.4]} 17... Nf6 {[%clk 0:04:38.8]} 18. b3 {[%clk
0:05:03.9]} 18... Rac8 {[%clk 0:04:37.9]} 19. Rac1 {[%clk 0:05:04.6]} 19... Qe7
{[%clk 0:04:37.9]} 20. Nc4 {[%clk 0:05:00.9]} 20... Bb8 {[%clk 0:04:35.7]} 21.
Ne5 {[%clk 0:05:01.6]} 21... Bxe5 {[%clk 0:04:35.9]} 22. fxe5 {[%clk 0:05:02.6]}
22... Nd5 {[%clk 0:04:36.4]} 23. c4 {[%clk 0:04:59.6]} 23... Nb6 {[%clk
0:04:27.5]} 24. a3 {[%clk 0:04:56.2]} 24... Rf7 {[%clk 0:04:23.2]} 25. Bf4
{[%clk 0:04:53.7]} 25... h6 {[%clk 0:04:22.2]} 26. a4 {[%clk 0:04:50.2]} 26...
Nd7 {[%clk 0:04:18.8]} 27. Qg3 {[%clk 0:04:50.7]} 27... Kh7 {[%clk 0:04:15.7]}
28. h4 {[%clk 0:04:48.8]} 28... Rg8 {[%clk 0:04:15.1]} 29. h5 {[%clk 0:04:47.9]}
29... g5 {[%clk 0:04:15]} 30. hxg6+ {[%clk 0:04:44.2]} 30... Rxg6 {[%clk
0:04:15.3]} 31. Qe3 {[%clk 0:04:36.5]} 31... Rfg7 {[%clk 0:04:15.2]} 32. Rc2
{[%clk 0:04:36.8]} 32... Qh4 {[%clk 0:04:09.2]} 33. Rff2 {[%clk 0:04:29.6]}
33... Rg4 {[%clk 0:04:01.6]} 34. Kf1 {[%clk 0:04:18.8]} 34... Qh1+ {[%clk
0:04:00.2]} 35. Ke2 {[%clk 0:04:15.7]} 35... Rxg2 {[%clk 0:03:54.1]} 36. Kd2
{[%clk 0:03:46.5]} 36... Rxf2+ {[%clk 0:03:52.9]} 37. Kc3 {[%clk 0:03:47.7]}
37... Rxc2+ {[%clk 0:03:49.6]} 38. Kxc2 {[%clk 0:03:49.6]} 38... Rg2+ {[%clk
0:03:48.7]} 39. Kc3 {[%clk 0:03:50.6]} 39... Qa1+ {[%clk 0:03:47.9]} 40. Kb4
{[%clk 0:03:51.2]} 40... Qg1 {[%clk 0:03:35.9]} 41. Qh3 {[%clk 0:03:50.7]} 41...
Qe1+ {[%clk 0:03:27.8]} 42. Kb5 {[%clk 0:03:51.4]} 42... a6# {[%clk 0:03:26.9]}
0-1

[Event "Vener-dì-Lampo"]
[Site "Chess.com"]
[Date "2020.04.24"]
[Round "2"]
[White "BAKR1980"]
[Black "Mrtre7"]
[Result "1-0"]
[WhiteElo "1607"]
[BlackElo "1435"]
[TimeControl "300+2"]
[EndTime "11:51:50 PDT"]
[Termination "BAKR1980 ha vinto per abbandono"]

1. e4 {[%clk 0:05:01.9]} 1... c5 {[%clk 0:05:00.4]} 2. Nf3 {[%clk 0:05:02]} 2...
e6 {[%clk 0:05:01.4]} 3. d4 {[%clk 0:05:02.4]} 3... cxd4 {[%clk 0:05:01.7]} 4.
Nxd4 {[%clk 0:05:03.3]} 4... Nc6 {[%clk 0:05:02.5]} 5. Nc3 {[%clk 0:05:04]} 5...
a6 {[%clk 0:05:01.3]} 6. Be3 {[%clk 0:05:04.7]} 6... Qc7 {[%clk 0:05:01]} 7. f4
{[%clk 0:05:02]} 7... Bb4 {[%clk 0:04:56.2]} 8. Qd2 {[%clk 0:04:59.9]} 8... Nf6
{[%clk 0:04:51.3]} 9. Bd3 {[%clk 0:04:46.1]} 9... d5 {[%clk 0:04:24.1]} 10. exd5
{[%clk 0:04:33.2]} 10... Nxd5 {[%clk 0:04:15.9]} 11. O-O {[%clk 0:04:28.8]}
11... Bxc3 {[%clk 0:03:48.9]} 12. bxc3 {[%clk 0:04:28.5]} 12... O-O {[%clk
0:03:39.5]} 13. Nxc6 {[%clk 0:04:18.9]} 13... Qxc6 {[%clk 0:03:23.4]} 14. c4
{[%clk 0:04:14.3]} 14... Nxe3 {[%clk 0:03:21]} 15. Qxe3 {[%clk 0:04:14.4]} 15...
b6 {[%clk 0:03:08.6]} 16. Be4 {[%clk 0:04:05]} 16... Qxc4 {[%clk 0:01:55.4]} 17.
Bxa8 {[%clk 0:04:03.9]} 17... Bd7 {[%clk 0:01:56.5]} 18. Be4 {[%clk 0:04:02.3]}
18... Rc8 {[%clk 0:01:51.7]} 19. Bd3 {[%clk 0:03:56.8]} 19... Qd5 {[%clk
0:01:51.4]} 20. Rad1 {[%clk 0:03:52.7]} 20... Qa5 {[%clk 0:01:51.1]} 21. Qh3
{[%clk 0:03:47.9]} 21... g6 {[%clk 0:01:50.9]} 22. Bxg6 {[%clk 0:03:42.1]} 22...
hxg6 {[%clk 0:01:28]} 23. Rxd7 {[%clk 0:03:42.6]} 23... Qb5 {[%clk 0:01:29.3]}
24. Rfd1 {[%clk 0:03:37.5]} 24... Qc5+ {[%clk 0:01:21.5]} 25. Kh1 {[%clk
0:03:37.3]} 25... Qxc2 {[%clk 0:01:21.8]} 26. Rd8+ {[%clk 0:03:28.9]} 26... Rxd8
{[%clk 0:01:22.1]} 27. Rxd8+ {[%clk 0:03:28.9]} 1-0